[Event "Live Chess"]
[Site "Chess.com"]
[Date "2024.06.01"]
[Round "-"]
[White "MaksymYurii"]
[Black "stevochess11"]
[Result "0-1"]
[WhiteElo "947"]
[BlackElo "1703"]
[TimeControl "300"]
[EndTime "13:43:30 PDT"]
[Termination "stevochess11 won on time"]

1. e4 {[%clk 0:04:49.2]} 1... c5 {[%clk 0:04:56.5]} 2. Nf3 {[%clk 0:04:48.2]}
2... g6 {[%clk 0:04:55.1]} 3. Bc4 {[%clk 0:04:47.2]} 3... Nc6 {[%clk 0:04:54]}
4. O-O {[%clk 0:04:38.4]} 4... Bg7 {[%clk 0:04:52.9]} 5. d4 {[%clk 0:04:34.6]}
5... cxd4 {[%clk 0:04:51.9]} 6. Ng5 {[%clk 0:04:19.6]} 6... e6 {[%clk
0:04:49.4]} 7. Nf3 {[%clk 0:04:06.4]} 7... Nge7 {[%clk 0:04:44.3]} 8. Bb5 {[%clk
0:03:56.9]} 8... O-O {[%clk 0:04:41.2]} 9. Bxc6 {[%clk 0:03:55.7]} 9... Nxc6
{[%clk 0:04:40.2]} 10. c3 {[%clk 0:03:51.2]} 10... dxc3 {[%clk 0:04:35.3]} 11.
Nxc3 {[%clk 0:03:48.8]} 11... b6 {[%clk 0:04:26.2]} 12. Nb5 {[%clk 0:03:30.1]}
12... d5 {[%clk 0:04:20.3]} 13. exd5 {[%clk 0:03:27.3]} 13... Qxd5 {[%clk
0:04:18.1]} 14. Qxd5 {[%clk 0:03:26.1]} 14... exd5 {[%clk 0:04:18]} 15. Bf4
{[%clk 0:03:18.9]} 15... Ba6 {[%clk 0:04:13.6]} 16. a4 {[%clk 0:03:12.9]} 16...
Bxb2 {[%clk 0:04:09.9]} 17. Rab1 {[%clk 0:03:10.3]} 17... Bg7 {[%clk 0:04:07.6]}
18. Rfd1 {[%clk 0:03:07.1]} 18... Rac8 {[%clk 0:04:04.6]} 19. Nd6 {[%clk
0:02:50.6]} 19... Rcd8 {[%clk 0:03:50.7]} 20. Rxd5 {[%clk 0:02:10]} 20... Bc4
{[%clk 0:03:29.6]} 21. Rdd1 {[%clk 0:01:28.9]} 21... Ba2 {[%clk 0:03:19.1]} 22.
Rbc1 {[%clk 0:01:22.8]} 22... Nb4 {[%clk 0:03:09.3]} 23. Rc7 {[%clk 0:01:08.8]}
23... Bb3 {[%clk 0:03:01.5]} 24. Rxa7 {[%clk 0:01:03.1]} 24... Bxd1 {[%clk
0:02:58]} 25. Ng5 {[%clk 0:00:50.9]} 25... Bb3 {[%clk 0:02:48.5]} 26. g3 {[%clk
0:00:40.6]} 26... h6 {[%clk 0:02:41.6]} 27. Ngxf7 {[%clk 0:00:38.1]} 27... Bxf7
{[%clk 0:02:40.5]} 28. Nxf7 {[%clk 0:00:29]} 28... Rxf7 {[%clk 0:02:39.3]} 29.
Rxf7 {[%clk 0:00:16.3]} 29... Kxf7 {[%clk 0:02:37.8]} 30. h4 {[%clk 0:00:14.2]}
30... Rd1+ {[%clk 0:02:34.8]} 31. Kg2 {[%clk 0:00:12.9]} 31... Nd3 {[%clk
0:02:33.6]} 32. Bb8 {[%clk 0:00:09.9]} 32... Rd2 {[%clk 0:02:29.5]} 33. Kh3
{[%clk 0:00:07.2]} 33... Nxf2+ {[%clk 0:02:28.2]} 34. Kg2 {[%clk 0:00:04.8]}
34... h5 {[%clk 0:02:25]} 35. Ba7 {[%clk 0:00:02.4]} 35... Ne4+ {[%clk
0:02:23.4]} 36. Kf3 {[%clk 0:00:00.3]} 36... Nc5 {[%clk 0:02:15]} 0-1

[Event "Live Chess"]
[Site "Chess.com"]
[Date "2024.06.01"]
[Round "-"]
[White "nitrofish07"]
[Black "Hoogleboogle"]
[Result "1-0"]
[WhiteElo "2095"]
[BlackElo "1419"]
[TimeControl "300"]
[EndTime "13:43:39 PDT"]
[Termination "nitrofish07 won by checkmate"]

1. e4 {[%clk 0:04:58.6]} 1... c6 {[%clk 0:04:53]} 2. d4 {[%clk 0:04:53.5]} 2...
d5 {[%clk 0:04:51.4]} 3. e5 {[%clk 0:04:53.4]} 3... Bf5 {[%clk 0:04:48.9]} 4. h4
{[%clk 0:04:52.8]} 4... e6 {[%clk 0:04:47.5]} 5. g4 {[%clk 0:04:51.7]} 5... Be4
{[%clk 0:04:37.1]} 6. f3 {[%clk 0:04:50.1]} 6... Bxc2 {[%clk 0:04:13.9]} 7. Qxc2
{[%clk 0:04:47.2]} 7... Bb4+ {[%clk 0:04:04.7]} 8. Bd2 {[%clk 0:04:45.8]} 8...
Bxd2+ {[%clk 0:04:01.9]} 9. Nxd2 {[%clk 0:04:45.7]} 9... Qb6 {[%clk 0:03:51.2]}
10. Ne2 {[%clk 0:04:42.7]} 10... Ne7 {[%clk 0:03:46.3]} 11. h5 {[%clk
0:04:40.7]} 11... h6 {[%clk 0:03:41.7]} 12. a4 {[%clk 0:04:35.4]} 12... a5
{[%clk 0:03:39]} 13. Nb3 {[%clk 0:04:33]} 13... Na6 {[%clk 0:03:32.7]} 14. Nc5
{[%clk 0:04:28.5]} 14... Nxc5 {[%clk 0:02:54.5]} 15. dxc5 {[%clk 0:04:27.2]}
15... Qb4+ {[%clk 0:02:49.6]} 16. Qc3 {[%clk 0:04:11.4]} 16... Qxc3+ {[%clk
0:02:36.3]} 17. bxc3 {[%clk 0:04:11.3]} 17... O-O {[%clk 0:02:26.1]} 18. Nd4
{[%clk 0:04:04.9]} 18... Rab8 {[%clk 0:02:15.4]} 19. Rb1 {[%clk 0:04:02.5]}
19... f6 {[%clk 0:01:58.5]} 20. Nxe6 {[%clk 0:03:49.7]} 20... Rf7 {[%clk
0:01:56]} 21. Bd3 {[%clk 0:03:44.4]} 21... fxe5 {[%clk 0:01:53.1]} 22. O-O
{[%clk 0:03:40.8]} 22... Rf6 {[%clk 0:01:37.1]} 23. Nc7 {[%clk 0:03:32.7]} 23...
Rc8 {[%clk 0:01:14.8]} 24. Rxb7 {[%clk 0:03:30]} 24... e4 {[%clk 0:00:59.8]} 25.
fxe4 {[%clk 0:03:28.1]} 25... dxe4 {[%clk 0:00:56.8]} 26. Bxe4 {[%clk
0:03:26.4]} 26... Rxf1+ {[%clk 0:00:53.9]} 27. Kxf1 {[%clk 0:03:26.3]} 27...
Rf8+ {[%clk 0:00:51.8]} 28. Kg2 {[%clk 0:03:24.6]} 28... Rf4 {[%clk 0:00:47.4]}
29. Ne6 {[%clk 0:03:20.7]} 29... Rxe4 {[%clk 0:00:43.5]} 30. Rxe7 {[%clk
0:03:19]} 30... Rxa4 {[%clk 0:00:39.7]} 31. Rxg7+ {[%clk 0:03:17.8]} 31... Kh8
{[%clk 0:00:36.4]} 32. Ra7 {[%clk 0:03:09.8]} 32... Rxg4+ {[%clk 0:00:33.5]} 33.
Kh3 {[%clk 0:03:07.9]} 33... Rc4 {[%clk 0:00:30.6]} 34. Nc7 {[%clk 0:02:51]}
34... Rxc5 {[%clk 0:00:27.6]} 35. Ne8 {[%clk 0:02:47.8]} 35... Rxc3+ {[%clk
0:00:24.8]} 36. Kg4 {[%clk 0:02:47.1]} 36... Rc4+ {[%clk 0:00:22.8]} 37. Kf5
{[%clk 0:02:45.3]} 37... Rc5+ {[%clk 0:00:20.2]} 38. Kg6 {[%clk 0:02:43.3]}
38... Kg8 {[%clk 0:00:17.6]} 39. Nf6+ {[%clk 0:02:38.8]} 39... Kf8 {[%clk
0:00:14.2]} 40. Rf7# {[%clk 0:02:37.5]} 1-0

[Event "Live Chess"]
[Site "Chess.com"]
[Date "2024.06.01"]
[Round "-"]
[White "blunderabit"]
[Black "Mangoalo"]
[Result "1-0"]
[WhiteElo "1778"]
[BlackElo "1042"]
[TimeControl "300"]
[EndTime "13:43:51 PDT"]
[Termination "blunderabit won by resignation"]

1. e4 {[%clk 0:04:36.2]} 1... c6 {[%clk 0:04:59.4]} 2. d4 {[%clk 0:04:24.4]}
2... d5 {[%clk 0:04:57.8]} 3. e5 {[%clk 0:04:23.1]} 3... Bf5 {[%clk 0:04:56.2]}
4. Nd2 {[%clk 0:04:17.4]} 4... Nd7 {[%clk 0:04:54.5]} 5. Nb3 {[%clk 0:04:15.7]}
5... e6 {[%clk 0:04:52.1]} 6. Be3 {[%clk 0:04:12.9]} 6... Bb4+ {[%clk
0:04:48.3]} 7. c3 {[%clk 0:04:10.7]} 7... Ba5 {[%clk 0:04:47]} 8. Nxa5 {[%clk
0:04:05.9]} 8... b5 {[%clk 0:04:43.9]} 9. Nxc6 {[%clk 0:03:56.8]} 9... Qc7
{[%clk 0:04:41.6]} 10. Nb4 {[%clk 0:03:54.3]} 10... a5 {[%clk 0:04:39.7]} 11.
Nd3 {[%clk 0:03:51.3]} 11... Bxd3 {[%clk 0:04:37.3]} 12. Bxd3 {[%clk 0:03:48.7]}
12... Qc4 {[%clk 0:04:37.2]} 13. Bxc4 {[%clk 0:03:46.3]} 13... bxc4 {[%clk
0:04:37.1]} 1-0

[Event "Live Chess"]
[Site "Chess.com"]
[Date "2024.06.01"]
[Round "-"]
[White "oscalik"]
[Black "BostonStrangler"]
[Result "1-0"]
[WhiteElo "2344"]
[BlackElo "2137"]
[TimeControl "300"]
[EndTime "13:43:58 PDT"]
[Termination "oscalik won on time"]

1. e4 {[%clk 0:04:55.9]} 1... c5 {[%clk 0:04:58.5]} 2. Nf3 {[%clk 0:04:54]} 2...
g6 {[%clk 0:04:58.1]} 3. d4 {[%clk 0:04:52.1]} 3... cxd4 {[%clk 0:04:58]} 4.
Nxd4 {[%clk 0:04:51.4]} 4... Nc6 {[%clk 0:04:56.5]} 5. Nc3 {[%clk 0:04:50.2]}
5... Bg7 {[%clk 0:04:55.1]} 6. Be3 {[%clk 0:04:49.6]} 6... Nf6 {[%clk
0:04:54.6]} 7. f3 {[%clk 0:04:46.2]} 7... O-O {[%clk 0:04:52.9]} 8. Nb3 {[%clk
0:04:43.3]} 8... a5 {[%clk 0:04:48.3]} 9. a4 {[%clk 0:04:41.4]} 9... d5 {[%clk
0:04:43.6]} 10. exd5 {[%clk 0:04:32.6]} 10... Nb4 {[%clk 0:04:42.5]} 11. Bc4
{[%clk 0:04:30.7]} 11... Bf5 {[%clk 0:04:39]} 12. Nd4 {[%clk 0:04:28]} 12... Rc8
{[%clk 0:04:37.3]} 13. Nxf5 {[%clk 0:04:22.2]} 13... Rxc4 {[%clk 0:04:28.6]} 14.
Nxg7 {[%clk 0:04:20]} 14... Kxg7 {[%clk 0:04:27.1]} 15. Qd2 {[%clk 0:04:10.2]}
15... Re8 {[%clk 0:04:00.8]} 16. Rd1 {[%clk 0:04:07.1]} 16... Qd7 {[%clk
0:03:50.5]} 17. O-O {[%clk 0:03:47]} 17... Qf5 {[%clk 0:03:48.8]} 18. Rf2 {[%clk
0:03:09.4]} 18... Rd8 {[%clk 0:03:42.7]} 19. b3 {[%clk 0:02:55]} 19... Rcc8
{[%clk 0:03:24.5]} 20. Bd4 {[%clk 0:02:52.3]} 20... Kg8 {[%clk 0:03:15.3]} 21.
Bxf6 {[%clk 0:02:40.6]} 21... Qxf6 {[%clk 0:03:09.6]} 22. Ne4 {[%clk 0:02:38.3]}
22... Qe5 {[%clk 0:03:07.1]} 23. c4 {[%clk 0:02:35.5]} 23... e6 {[%clk
0:03:02.4]} 24. Nc3 {[%clk 0:01:54.4]} 24... exd5 {[%clk 0:02:32]} 25. Nxd5
{[%clk 0:01:52.7]} 25... Nxd5 {[%clk 0:02:21.4]} 26. cxd5 {[%clk 0:01:51.2]}
26... Rc5 {[%clk 0:02:15.3]} 27. d6 {[%clk 0:01:36.1]} 27... Rc6 {[%clk
0:02:12.4]} 28. d7 {[%clk 0:01:25.7]} 28... Rc7 {[%clk 0:02:11]} 29. Re1 {[%clk
0:01:05.6]} 29... Rcxd7 {[%clk 0:01:01.4]} 30. Rxe5 {[%clk 0:00:58.3]} 30...
Rxd2 {[%clk 0:00:58.4]} 31. Rxd2 {[%clk 0:00:57.1]} 31... Rxd2 {[%clk
0:00:58.3]} 32. Rxa5 {[%clk 0:00:56]} 32... b6 {[%clk 0:00:33.6]} 33. Rb5 {[%clk
0:00:55]} 33... Rd6 {[%clk 0:00:31.7]} 34. Kf2 {[%clk 0:00:53.3]} 34... Kf8
{[%clk 0:00:30]} 35. Ke3 {[%clk 0:00:52.9]} 35... Ke7 {[%clk 0:00:28.4]} 36. b4
{[%clk 0:00:51.6]} 36... Kd7 {[%clk 0:00:26.7]} 37. Ke4 {[%clk 0:00:50.7]} 37...
Kc6 {[%clk 0:00:22]} 38. g4 {[%clk 0:00:45.1]} 38... Re6+ {[%clk 0:00:18.6]} 39.
Kf4 {[%clk 0:00:41.1]} 39... Rf6+ {[%clk 0:00:16.3]} 40. Ke4 {[%clk 0:00:40.3]}
40... Re6+ {[%clk 0:00:15.4]} 41. Re5 {[%clk 0:00:39]} 41... Rd6 {[%clk
0:00:12.1]} 42. g5 {[%clk 0:00:30.5]} 42... f6 {[%clk 0:00:10.1]} 43. b5+ {[%clk
0:00:28]} 43... Kd7 {[%clk 0:00:08.3]} 44. Rd5 {[%clk 0:00:27.3]} 44... fxg5
{[%clk 0:00:03.6]} 45. h3 {[%clk 0:00:18.9]} 1-0

[Event "Live Chess"]
[Site "Chess.com"]
[Date "2024.06.01"]
[Round "-"]
[White "matt1979"]
[Black "Brooms1989"]
[Result "0-1"]
[WhiteElo "1355"]
[BlackElo "1122"]
[TimeControl "300"]
[EndTime "13:44:01 PDT"]
[Termination "Brooms1989 won by checkmate"]

1. f4 {[%clk 0:04:58.7]} 1... Nf6 {[%clk 0:04:57.6]} 2. Nf3 {[%clk 0:04:57.5]}
2... g6 {[%clk 0:04:55.2]} 3. d3 {[%clk 0:04:53.3]} 3... Bg7 {[%clk 0:04:53.4]}
4. e4 {[%clk 0:04:52.4]} 4... d6 {[%clk 0:04:52.5]} 5. Be2 {[%clk 0:04:52.3]}
5... O-O {[%clk 0:04:50.7]} 6. O-O {[%clk 0:04:52.2]} 6... Nc6 {[%clk 0:04:37]}
7. Qe1 {[%clk 0:04:48.5]} 7... e5 {[%clk 0:04:34.2]} 8. f5 {[%clk 0:04:45.6]}
8... Nd4 {[%clk 0:04:27.1]} 9. Nxd4 {[%clk 0:04:43.4]} 9... exd4 {[%clk
0:04:27]} 10. Qh4 {[%clk 0:04:40.2]} 10... c5 {[%clk 0:04:13.7]} 11. Bg5 {[%clk
0:04:36.4]} 11... b5 {[%clk 0:03:51.6]} 12. Rf3 {[%clk 0:04:24]} 12... Bb7
{[%clk 0:03:42.7]} 13. Rh3 {[%clk 0:04:22]} 13... h5 {[%clk 0:03:36.7]} 14. g4
{[%clk 0:04:13.9]} 14... c4 {[%clk 0:03:31.3]} 15. gxh5 {[%clk 0:04:07.4]} 15...
cxd3 {[%clk 0:03:27.7]} 16. hxg6 {[%clk 0:03:55.6]} 16... dxe2 {[%clk 0:03:18]}
17. Bxf6 {[%clk 0:03:53.1]} 17... e1=Q+ {[%clk 0:03:11.4]} 18. Qxe1 {[%clk
0:03:51.7]} 18... Qxf6 {[%clk 0:03:09.9]} 19. Rh7 {[%clk 0:03:31.7]} 19... Qg5+
{[%clk 0:03:04.4]} 20. Kh1 {[%clk 0:03:28]} 20... Qf4 {[%clk 0:02:56.3]} 21. Nd2
{[%clk 0:03:16.6]} 21... fxg6 {[%clk 0:02:15.3]} 22. fxg6 {[%clk 0:03:15]} 22...
Rae8 {[%clk 0:01:51.6]} 23. Qe2 {[%clk 0:02:56]} 23... Bxe4+ {[%clk 0:01:45.6]}
24. Nxe4 {[%clk 0:02:50.8]} 24... Qxe4+ {[%clk 0:01:36.6]} 25. Qxe4 {[%clk
0:02:49.8]} 25... Rxe4 {[%clk 0:01:36.3]} 26. Rg1 {[%clk 0:02:39.2]} 26... Re6
{[%clk 0:01:26.7]} 27. h4 {[%clk 0:02:36.1]} 27... Rf2 {[%clk 0:01:15]} 28. h5
{[%clk 0:02:32.5]} 28... Re4 {[%clk 0:01:09.8]} 29. Rg5 {[%clk 0:02:10.6]} 29...
Re1+ {[%clk 0:01:02.1]} 30. Rg1 {[%clk 0:02:09.6]} 30... Ree2 {[%clk 0:00:55.3]}
31. Rh8+ {[%clk 0:01:59.1]} 31... Bxh8 {[%clk 0:00:50.7]} 32. g7 {[%clk
0:01:57.8]} 32... Rh2# {[%clk 0:00:49.2]} 0-1

[Event "Live Chess"]
[Site "Chess.com"]
[Date "2024.06.01"]
[Round "-"]
[White "AndrewBak1"]
[Black "MagnersCarlsberg2870"]
[Result "1-0"]
[WhiteElo "1850"]
[BlackElo "1806"]
[TimeControl "300"]
[EndTime "13:44:10 PDT"]
[Termination "AndrewBak1 won by resignation"]

1. e4 {[%clk 0:04:57.8]} 1... d6 {[%clk 0:04:57]} 2. Nc3 {[%clk 0:04:56.2]} 2...
Nf6 {[%clk 0:04:55.4]} 3. f4 {[%clk 0:04:55.6]} 3... c6 {[%clk 0:04:45.9]} 4.
Nf3 {[%clk 0:04:41.9]} 4... Bg4 {[%clk 0:04:44.3]} 5. a4 {[%clk 0:04:35.9]} 5...
g6 {[%clk 0:04:41.3]} 6. Bc4 {[%clk 0:04:34]} 6... Bg7 {[%clk 0:04:40.1]} 7. O-O
{[%clk 0:04:29.3]} 7... O-O {[%clk 0:04:38.9]} 8. h3 {[%clk 0:04:28.4]} 8...
Bxf3 {[%clk 0:04:36.9]} 9. Qxf3 {[%clk 0:04:28.3]} 9... e5 {[%clk 0:04:34.9]}
10. f5 {[%clk 0:04:05.9]} 10... a6 {[%clk 0:04:29.4]} 11. d3 {[%clk 0:04:00.5]}
11... Nbd7 {[%clk 0:04:26.9]} 12. Bg5 {[%clk 0:03:55.6]} 12... h6 {[%clk
0:04:08.4]} 13. Be3 {[%clk 0:02:34.4]} 13... b5 {[%clk 0:04:02.3]} 14. axb5
{[%clk 0:02:30]} 14... axb5 {[%clk 0:04:01.2]} 15. Bb3 {[%clk 0:02:27.5]} 15...
g5 {[%clk 0:03:51.7]} 16. h4 {[%clk 0:02:23.4]} 16... g4 {[%clk 0:03:48.6]} 17.
Qe2 {[%clk 0:02:20]} 17... d5 {[%clk 0:03:42.3]} 18. exd5 {[%clk 0:02:16.3]}
18... Nxd5 {[%clk 0:03:41.1]} 19. Nxd5 {[%clk 0:02:13.5]} 19... cxd5 {[%clk
0:03:40.1]} 20. Bxd5 {[%clk 0:02:12.5]} 20... Rxa1 {[%clk 0:03:38.6]} 21. Rxa1
{[%clk 0:02:12.4]} 21... Qxh4 {[%clk 0:03:32.2]} 22. Bc6 {[%clk 0:01:12.6]}
22... Nb8 {[%clk 0:03:21.5]} 23. Bxb5 {[%clk 0:01:11]} 23... g3 {[%clk
0:03:20.2]} 24. c3 {[%clk 0:01:06.2]} 24... Qh2+ {[%clk 0:03:09.4]} 25. Kf1
{[%clk 0:01:05]} 25... Bf6 {[%clk 0:02:53.7]} 26. Qg4+ {[%clk 0:00:58.6]} 26...
Kh7 {[%clk 0:02:50.6]} 27. Qh3 {[%clk 0:00:55.7]} 27... Rg8 {[%clk 0:02:36.1]}
28. Bg1 {[%clk 0:00:51]} 28... Qxh3 {[%clk 0:02:33.8]} 29. gxh3 {[%clk
0:00:50.9]} 29... g2+ {[%clk 0:02:33.1]} 30. Kf2 {[%clk 0:00:50.3]} 30... Bg5
{[%clk 0:02:29.6]} 31. Ra7 {[%clk 0:00:47.8]} 31... Bh4+ {[%clk 0:02:20.4]} 32.
Kf3 {[%clk 0:00:46.2]} 32... Rg3+ {[%clk 0:02:16.2]} 33. Ke4 {[%clk 0:00:45.4]}
33... Kg7 {[%clk 0:02:08.5]} 34. Bc4 {[%clk 0:00:43.7]} 34... Bg5 {[%clk
0:02:01.1]} 35. Rxf7+ {[%clk 0:00:40.5]} 35... Kh8 {[%clk 0:01:59.4]} 36. Kxe5
{[%clk 0:00:39.9]} 36... Re3+ {[%clk 0:01:55.9]} 37. Kd6 {[%clk 0:00:38.4]}
37... Re1 {[%clk 0:01:52.7]} 38. Bd4+ {[%clk 0:00:37.1]} 38... Kg8 {[%clk
0:01:50.9]} 39. Re7+ {[%clk 0:00:35.6]} 39... Kf8 {[%clk 0:01:38.4]} 40. Rxe1
{[%clk 0:00:35.1]} 1-0

[Event "Live Chess"]
[Site "Chess.com"]
[Date "2024.06.01"]
[Round "-"]
[White "missedJariChance"]
[Black "crais6"]
[Result "0-1"]
[WhiteElo "1342"]
[BlackElo "1621"]
[TimeControl "300"]
[EndTime "13:44:16 PDT"]
[Termination "crais6 won by checkmate"]

1. b3 {[%clk 0:04:57.1]} 1... e5 {[%clk 0:04:54.5]} 2. Bb2 {[%clk 0:04:55.3]}
2... Nc6 {[%clk 0:04:52.7]} 3. e3 {[%clk 0:04:53.4]} 3... d5 {[%clk 0:04:50.3]}
4. Nf3 {[%clk 0:04:52.2]} 4... Bg4 {[%clk 0:04:28.9]} 5. Be2 {[%clk 0:04:50.5]}
5... Bxf3 {[%clk 0:04:21.5]} 6. Bxf3 {[%clk 0:04:48.3]} 6... Nf6 {[%clk
0:04:19.9]} 7. d3 {[%clk 0:04:42.3]} 7... Bb4+ {[%clk 0:04:13.7]} 8. Nd2 {[%clk
0:04:38.5]} 8... O-O {[%clk 0:04:11.4]} 9. O-O {[%clk 0:04:36]} 9... Re8 {[%clk
0:04:07.7]} 10. a3 {[%clk 0:04:29.8]} 10... Bd6 {[%clk 0:04:03.3]} 11. Re1
{[%clk 0:04:23.5]} 11... e4 {[%clk 0:03:52.4]} 12. dxe4 {[%clk 0:04:18.2]} 12...
dxe4 {[%clk 0:03:50.5]} 13. Be2 {[%clk 0:04:15.5]} 13... Qe7 {[%clk 0:03:46.6]}
14. c4 {[%clk 0:04:12.9]} 14... Rad8 {[%clk 0:03:43.6]} 15. Qc2 {[%clk
0:04:09.7]} 15... a5 {[%clk 0:03:24]} 16. Rad1 {[%clk 0:04:02.3]} 16... Bxa3
{[%clk 0:03:17]} 17. Bxf6 {[%clk 0:03:45.6]} 17... Qxf6 {[%clk 0:03:13.3]} 18.
Nxe4 {[%clk 0:03:41.2]} 18... Qg6 {[%clk 0:03:09.3]} 19. Bd3 {[%clk 0:03:34.6]}
19... Qh5 {[%clk 0:02:52.9]} 20. Ng3 {[%clk 0:03:28.3]} 20... Qh6 {[%clk
0:02:49]} 21. Nf5 {[%clk 0:03:18.2]} 21... Qf6 {[%clk 0:02:43]} 22. e4 {[%clk
0:03:00.5]} 22... Ne5 {[%clk 0:02:32.3]} 23. Be2 {[%clk 0:02:53.9]} 23... Bb4
{[%clk 0:02:29.7]} 24. Rxd8 {[%clk 0:02:48.1]} 24... Rxd8 {[%clk 0:02:27.8]} 25.
Rd1 {[%clk 0:02:45.7]} 25... Rxd1+ {[%clk 0:02:20.3]} 26. Bxd1 {[%clk 0:02:44]}
26... g6 {[%clk 0:02:17.2]} 27. Nh6+ {[%clk 0:02:30.1]} 27... Kg7 {[%clk
0:02:15.3]} 28. Ng4 {[%clk 0:02:26.4]} 28... Nxg4 {[%clk 0:02:07.6]} 29. Bxg4
{[%clk 0:02:25.1]} 29... Bc5 {[%clk 0:02:05.8]} 30. h3 {[%clk 0:02:17.4]} 30...
Qe5 {[%clk 0:02:00.5]} 31. Bf3 {[%clk 0:02:06.6]} 31... h5 {[%clk 0:01:54]} 32.
Qa2 {[%clk 0:01:54.4]} 32... b6 {[%clk 0:01:51.1]} 33. Qc2 {[%clk 0:01:43.9]}
33... Qf4 {[%clk 0:01:48.3]} 34. Qe2 {[%clk 0:01:36.3]} 34... Qe5 {[%clk
0:01:33]} 35. Qc2 {[%clk 0:01:33.1]} 35... Qa1+ {[%clk 0:01:29.7]} 36. Kh2
{[%clk 0:01:31.4]} 36... Bd6+ {[%clk 0:01:27.5]} 37. g3 {[%clk 0:01:30.3]} 37...
h4 {[%clk 0:01:17.5]} 38. Kg2 {[%clk 0:01:26.9]} 38... hxg3 {[%clk 0:01:13.1]}
39. fxg3 {[%clk 0:01:25.7]} 39... Bc5 {[%clk 0:01:09.4]} 40. h4 {[%clk
0:01:15.3]} 40... Qg1+ {[%clk 0:01:06.5]} 41. Kh3 {[%clk 0:01:14.4]} 41... Bd6
{[%clk 0:01:03.3]} 42. Qh2 {[%clk 0:01:09.5]} 42... Qf1+ {[%clk 0:00:54.6]} 43.
Qg2 {[%clk 0:01:07.2]} 43... Qa1 {[%clk 0:00:50]} 44. Qc2 {[%clk 0:00:56.4]}
44... Qd4 {[%clk 0:00:47.6]} 45. Bg4 {[%clk 0:00:50]} 45... Qe3 {[%clk
0:00:41.4]} 46. Qg2 {[%clk 0:00:38.7]} 46... Qxb3 {[%clk 0:00:37]} 47. Qe2
{[%clk 0:00:32.6]} 47... Qxg3# {[%clk 0:00:33.2]} 0-1

[Event "Live Chess"]
[Site "Chess.com"]
[Date "2024.06.01"]
[Round "-"]
[White "JohanKjeldahl"]
[Black "Eva3337"]
[Result "1-0"]
[WhiteElo "1872"]
[BlackElo "1169"]
[TimeControl "300"]
[EndTime "13:44:26 PDT"]
[Termination "JohanKjeldahl won by resignation"]

1. e4 {[%clk 0:04:55.2]} 1... Nc6 {[%clk 0:04:58.3]} 2. d4 {[%clk 0:04:51.4]}
2... d6 {[%clk 0:04:55]} 3. Nc3 {[%clk 0:04:49.8]} 3... e6 {[%clk 0:04:43.7]} 4.
Nf3 {[%clk 0:04:48.2]} 4... g6 {[%clk 0:04:38.5]} 5. Be3 {[%clk 0:04:44.9]} 5...
Bg7 {[%clk 0:04:37.6]} 6. a3 {[%clk 0:04:40.9]} 6... Nf6 {[%clk 0:04:34.5]} 7.
Qd2 {[%clk 0:04:38.3]} 7... Ng4 {[%clk 0:04:32.8]} 8. Bg5 {[%clk 0:04:32.4]}
8... f6 {[%clk 0:04:16.5]} 9. Bh4 {[%clk 0:04:27.5]} 9... g5 {[%clk 0:04:14.2]}
10. Bg3 {[%clk 0:04:25.5]} 10... e5 {[%clk 0:04:10.1]} 11. d5 {[%clk 0:04:19.7]}
11... Ne7 {[%clk 0:04:02.5]} 12. h3 {[%clk 0:04:07.2]} 12... Nh6 {[%clk
0:04:00.1]} 13. Bb5+ {[%clk 0:04:03.8]} 13... c6 {[%clk 0:03:56.8]} 14. dxc6
{[%clk 0:04:02.5]} 14... bxc6 {[%clk 0:03:53.7]} 15. Bc4 {[%clk 0:04:01]} 15...
Rb8 {[%clk 0:03:31.9]} 16. b4 {[%clk 0:03:58.4]} 16... Ng6 {[%clk 0:03:08]} 17.
Rd1 {[%clk 0:03:55.2]} 17... Bf8 {[%clk 0:03:02.4]} 18. h4 {[%clk 0:03:40]}
18... g4 {[%clk 0:02:52.4]} 19. Nh2 {[%clk 0:03:35.4]} 19... Nf7 {[%clk
0:02:25.1]} 20. h5 {[%clk 0:03:32]} 20... Nf4 {[%clk 0:02:11.5]} 21. Bxf4 {[%clk
0:03:30.1]} 21... exf4 {[%clk 0:02:10.2]} 22. Qxf4 {[%clk 0:03:22.5]} 22... Ng5
{[%clk 0:01:44.1]} 23. Nxg4 {[%clk 0:03:16.3]} 23... Bxg4 {[%clk 0:01:38.2]} 24.
Qxg4 {[%clk 0:03:13.5]} 24... Rg8 {[%clk 0:01:32.5]} 25. Bxg8 {[%clk 0:03:07.7]}
1-0